[Event "Nakhchivan Premium 2021"]
[Site "Nakhchivan"]
[Date "2021.03.29"]
[Round "8.4"]
[White "Ahmadova, Yegana"]
[Black "Aliyev, Aykhan"]
[Result "0-1"]
[ECO "A05"]
[WhiteElo "1421"]
[BlackElo "1683"]
[Annotator "NA RC"]
[PlyCount "143"]
[EventDate "2021.03.14"]
[EventType "tourn"]
[EventCountry "AZE"]
[SourceTitle "playchess.com"]
[Source "ChessBase"]
[SourceQuality "1"]
[TimeControl "5400+30"]

1. Nf3 {[%emt 0:00:00]} Nf6 {[%emt 0:00:00]} 2. c4 {[%emt 0:00:00]} g6 {[%emt 0:00:01]} 3. b3 {[%emt 0:00:00]} Bg7 {[%emt 0:00:08]} 4. Bb2 {[%emt 0:00:00]} b6 {[%emt 0:00:08]} 5. Nc3 {[%emt 0:00:09]} Bb7 {[%emt 0:00:07]} 6. g3 {[%emt 0:00:20]} O-O {[%emt 0:00:28]} 7. Bg2 {[%emt 0:00:06]} d5 {[%emt 0:00:45]} 8. d3 {[%emt 0:02:02]} d4 {[%emt 0:01:40]} 9. Nb1 {[%emt 0:00:39]} c5 {[%emt 0:00:11]} 10. O-O {[%emt 0:00:06]} Nbd7 {[%emt 0:00:07]} 11. e3 {[%emt 0:02:37]} e5 {[%emt 0:00:41]} 12. e4 {[%emt 0:07:01]} Ne8 {[%emt 0:02:38]} 13. Ne1 {[%emt 0:01:11]} Nd6 {[%emt 0:00:43]} 14. Nd2 {[%emt 0:04:15]} Qe7 {[%emt 0:06:57]} 15. Nc2 {[%emt 0:05:24]} f5 {[%emt 0:01:27]} 16. f3 {[%emt 0:00:21]} Bh6 {[%emt 0:03:25]} 17. Qe2 {[%emt 0:00:41]} Nf6 {[%emt 0:00:20]} 18. Rae1 {[%emt 0:06:20]} fxe4 {[%emt 0:00:43]} 19. fxe4 {[%emt 0:01:23]} Bc8 {[%emt 0:00:45]} 20. Nf3 {[%emt 0:06:53]} Bd7 {[%emt 0:04:22]} 21. Bc1 {[%emt 0:04:44]} Bxc1 {[%emt 0:00:19]} 22. Rxc1 {[%emt 0:00:06]} Rad8 {[%emt 0:01:24]} 23. Rb1 {[%emt 0:02:48]} Kg7 {[%emt 0:05:14]} 24. b4 {[%emt 0:01:10]} Ba4 {[%emt 0:01:40]} 25. Nfe1 {[%emt 0:02:55]} Bxc2 {[%emt 0:01:14]} 26. Nxc2 {[%emt 0:00:11]} Nxc4 {[%emt 0:00:42]} 27. bxc5 {[%emt 0:05:49]} Qxc5 {[%emt 0:01:17]} 28. dxc4 {[%emt 0:05:24]} d3+ {[%emt 0:00:15]} 29. Qf2 {[%emt 0:00:31]} dxc2 {[%emt 0:04:43]} 30. Qxc5 {[%emt 0:02:27]} bxc5 {[%emt 0:01:19]} 31. Rbc1 {[%emt 0:03:18]} Rd2 {[%emt 0:00:17]} 32. Rf2 {[%emt 0:07:09]} Rxf2 {[%emt 0:00:24]} 33. Kxf2 {[%emt 0:00:05]} Ng4+ {[%emt 0:00:06]} 34. Ke1 {[%emt 0:03:29]} Ne3 {[%emt 0:00:06]} 35. Bh3 {[%emt 0:00:32]} Rd8 {[%emt 0:01:53]} 36. Ke2 {[%emt 0:00:31]} Rd1 {[%emt 0:00:10]} 37. Rxc2 {[%emt 0:00:43]} Nxc2 {[%emt 0:00:05]} 38. Kxd1 {[%emt 0:00:17]} Ne3+ {[%emt 0:00:03]} 39. Kd2 {[%emt 0:01:21]} Nxc4+ {[%emt 0:00:05]} 40. Kc3 {[%emt 0:00:00]} Nd6 {[%emt 0:00:00]} 41. Bg2 {[%emt 0:00:00]} Kf6 {[%emt 0:00:00]} 42. Bf3 {[%emt 0:00:00]} Ke7 {[%emt 0:00:00]} 43. Kd3 {[%emt 0:00:00]} Kd7 {[%emt 0:00:00]} 44. Bg4+ {[%emt 0:00:00]} Kc6 {[%emt 0:00:00]} 45. Be6 {[%emt 0:00:00]} Kb5 {[%emt 0:00:00]} 46. Bd5 {[%emt 0:00:00]} Kb4 {[%emt 0:00:00]} 47. h4 {[%emt 0:00:00]} h6 {[%emt 0:00:00]} 48. g4 {[%emt 0:00:00]} g5 {[%emt 0:00:00]} 49. hxg5 {[%emt 0:00:00]} hxg5 {[%emt 0:00:00]} 50. Kc2 {[%emt 0:00:00]} a5 {[%emt 0:00:00]} 51. Kb2 {[%emt 0:00:00]} Nb5 {[%emt 0:00:00]} 52. Bc6 {[%emt 0:00:00]} Na3 {[%emt 0:00:00]} 53. Bd5 {[%emt 0:00:00]} Nc4+ {[%emt 0:00:00]} 54. Kb1 {[%emt 0:00:00]} Ne3 {[%emt 0:00:00]} 55. Be6 {[%emt 0:00:00]} Kc3 {[%emt 0:00:00]} 56. Kc1 {[%emt 0:02:32]} a4 {[%emt 0:00:00]} 57. Bf5 {[%emt 0:01:14]} a3 {[%emt 0:00:00]} 58. Be6 {[%emt 0:00:41]} Kd3 {[%emt 0:00:00]} 59. Bf5 {[%emt 0:00:50]} c4 {[%emt 0:00:00]} 60. Be6 {[%emt 0:00:24]} c3 {[%emt 0:00:00]} 61. Bf5 {[%emt 0:00:48]} Kd4 {[%emt 0:00:00]} 62. Kb1 {[%emt 0:00:32]} Kd3 {[%emt 0:00:00]} 63. Kc1 {[%emt 0:01:00]} Nf1 {[%emt 0:00:00]} 64. Bd7 {[%emt 0:01:23]} Kxe4 {[%emt 0:00:11]} 65. Bf5+ {[%emt 0:00:13]} Kd4 {[%emt 0:00:12]} 66. Kd1 {[%emt 0:00:19]} Ne3+ {[%emt 0:00:04]} 67. Ke2 {[%emt 0:00:35]} Nxf5 {[%emt 0:00:23]} 68. gxf5 {[%emt 0:00:06]} Kd5 {[%emt 0:00:06]} 69. Kd3 {[%emt 0:00:13]} e4+ {[%emt 0:00:24]} 70. Kxc3 {[%emt 0:00:08]} Ke5 {[%emt 0:00:06]} 71. f6 {[%emt 0:00:14]} Kxf6 {[%emt 0:00:05]} 72. Kd4 {[%emt 0:00:10]} 0-1

[Event "Nakhchivan Premium 2021"]
[Site "Nakhchivan"]
[Date "2021.03.30"]
[Round "9.2"]
[White "Mammadov, Sadig"]
[Black "Babayev, Talib"]
[Result "1/2-1/2"]
[ECO "E63"]
[WhiteElo "2237"]
[BlackElo "2282"]
[Annotator "ChessBase"]
[PlyCount "177"]
[EventDate "2021.03.14"]
[EventType "tourn"]
[EventCountry "AZE"]
[SourceTitle "playchess.com"]
[Source "ChessBase"]
[SourceQuality "1"]
[TimeControl "5400+30"]

1. d4 {[%emt 0:00:00]} Nf6 {[%emt 0:00:00]} 2. c4 {[%emt 0:00:00]} g6 {[%emt 0:00:00]} 3. g3 Bg7 {[%emt 0:00:00]} 4. Bg2 {[%emt 0:00:02]} d6 {[%emt 0:00:13]} 5. Nc3 {[%emt 0:00:17]} O-O {[%emt 0:00:08]} 6. Nf3 {[%emt 0:00:06]} Nc6 {[%emt 0:00:07]} 7. O-O {[%emt 0:00:44]} a6 {[%emt 0:00:12]} 8. h3 {[%emt 0:02:28]} Bd7 {[%emt 0:00:55]} 9. e4 {[%emt 0:00:51]} e5 {[%emt 0:03:42]} 10. d5 {[%emt 0:01:28]} Nd4 {[%emt 0:01:45]} 11. Be3 {[%emt 0:09:26]} Qc8 {[%emt 0:01:13]} 12. Nxd4 {[%emt 0:02:08]} exd4 {[%emt 0:00:07]} 13. Bxd4 {[%emt 0:00:04]} Bxh3 {[%emt 0:00:10]} 14. e5 {[%emt 0:00:48]} dxe5 {[%emt 0:04:31]} 15. Bxe5 {[%emt 0:00:34]} Re8 {[%emt 0:00:31]} 16. Qd4 {[%emt 0:00:47]} c5 {[%emt 0:03:32]} 17. Qh4 {[%emt 0:11:04]} Bxg2 {[%emt 0:01:00]} 18. Bxf6 {[%emt 0:00:21]} Bxf6 {[%emt 0:01:34]} 19. Qxf6 {[%emt 0:00:01]} Qh3 {[%emt 0:01:21]} 20. Qh4 {[%emt 0:00:04]} Bxf1 {[%emt 0:00:13]} 21. Rxf1 {[%emt 0:00:01]} Qxh4 {[%emt 0:01:36]} 22. gxh4 {[%emt 0:00:03]} b5 {[%emt 0:00:53]} 23. Rd1 {[%emt 0:01:02]} bxc4 {[%emt 0:00:49]} 24. Kg2 {[%emt 0:01:27]} f5 {[%emt 0:01:00]} 25. Rd2 {[%emt 0:01:31]} Rad8 {[%emt 0:01:43]} 26. Na4 {[%emt 0:00:52]} Re5 {[%emt 0:02:25]} 27. Nb6 {[%emt 0:01:48]} Kf7 {[%emt 0:01:03]} 28. f3 {[%emt 0:01:39]} f4 {[%emt 0:06:14]} 29. d6 {[%emt 0:05:32]} c3 {[%emt 0:03:10]} 30. bxc3 {[%emt 0:00:02]} Re3 {[%emt 0:00:11]} 31. Na4 {[%emt 0:00:27]} Re6 {[%emt 0:00:34]} 32. d7 {[%emt 0:00:07]} Rc6 {[%emt 0:00:21]} 33. Rd5 {[%emt 0:02:21]} Ke6 {[%emt 0:00:50]} 34. c4 {[%emt 0:00:05]} Ke7 {[%emt 0:28:09]} 35. Nxc5 {[%emt 0:00:26]} h6 {[%emt 0:01:56]} 36. Re5+ {[%emt 0:02:40]} Kf7 {[%emt 0:01:03]} 37. Rd5 {[%emt 0:00:15]} Rb6 {[%emt 0:03:29]} 38. Kh3 {[%emt 0:01:34]} h5 {[%emt 0:02:43]} 39. Rd4 {[%emt 0:15:36]} Ke7 {[%emt 0:03:07]} 40. Re4+ {[%emt 0:00:00]} Kf7 {[%emt 0:00:00]} 41. Rxf4+ {[%emt 0:00:00]} Rf6 {[%emt 0:00:00]} 42. Rd4 {[%emt 0:00:00]} Ke7 {[%emt 0:00:00]} 43. Re4+ {[%emt 0:00:00]} Kf7 {[%emt 0:00:00]} 44. Rd4 {[%emt 0:00:00]} Rb6 {[%emt 0:00:00]} 45. Kg3 {[%emt 0:00:00]} a5 {[%emt 0:00:00]} 46. Rd5 {[%emt 0:00:00]} Ke7 {[%emt 0:00:00]} 47. Re5+ {[%emt 0:00:00]} Kf6 {[%emt 0:00:00]} 48. Re8 {[%emt 0:00:00]} Rbb8 {[%emt 0:00:00]} 49. Re6+ {[%emt 0:00:00]} Kf7 {[%emt 0:00:00]} 50. Re4 {[%emt 0:00:00]} Rb2 {[%emt 0:02:55]} 51. Rd4 {[%emt 0:00:00]} Ke7 {[%emt 0:01:19]} 52. a3 {[%emt 0:00:00]} Re2 {[%emt 0:00:58]} 53. Rd5 {[%emt 0:00:00]} a4 {[%emt 0:04:46]} 54. Rg5 {[%emt 0:06:30]} Re3 {[%emt 0:07:46]} 55. Rxg6 {[%emt 0:01:30]} Rxa3 {[%emt 0:00:06]} 56. Rg7+ {[%emt 0:01:23]} Kf6 {[%emt 0:00:44]} 57. Rh7 {[%emt 0:08:41]} Rg8+ {[%emt 0:06:21]} 58. Kf4 {[%emt 0:04:21]} Ra1 {[%emt 0:07:53]} 59. Nb7 {[%emt 0:00:50]} Kg6 {[%emt 0:00:10]} 60. Re7 {[%emt 0:00:15]} Rf8+ {[%emt 0:00:08]} 61. Kg3 {[%emt 0:00:49]} a3 {[%emt 0:01:09]} 62. Re8 {[%emt 0:10:36]} a2 {[%emt 0:00:15]} 63. d8=Q {[%emt 0:00:11]} Rg1+ {[%emt 0:00:05]} 64. Kh2 {[%emt 0:00:54]} a1=Q {[%emt 0:00:09]} 65. Qd6+ {[%emt 0:09:50]} Kh7 {[%emt 0:01:07]} 66. Rxf8 {[%emt 0:01:53]} Rh1+ {[%emt 0:01:11]} 67. Kg3 {[%emt 0:00:01]} Rg1+ {[%emt 0:01:58]} 68. Kf4 {[%emt 0:02:22]} Qc1+ {[%emt 0:00:10]} 69. Kf5 {[%emt 0:00:06]} Qc2+ {[%emt 0:00:04]} 70. Ke6 {[%emt 0:02:22]} Re1+ {[%emt 0:01:51]} 71. Kd7 {[%emt 0:00:59]} Rd1 {[%emt 0:00:04]} 72. Rf7+ {[%emt 0:00:58]} Kg8 {[%emt 0:00:05]} 73. Qxd1 {[%emt 0:00:09]} Qxd1+ {[%emt 0:00:13]} 74. Nd6 {[%emt 0:00:01]} Qd4 {[%emt 0:00:27]} 75. f4 {[%emt 0:01:50]} Qa7+ {[%emt 0:00:24]} 76. Kc6 {[%emt 0:00:32]} Qa8+ {[%emt 0:00:47]} 77. Rb7 {[%emt 0:00:24]} Qd8 {[%emt 0:00:22]} 78. c5 {[%emt 0:01:51]} Qxh4 {[%emt 0:00:15]} 79. Kd7 {[%emt 0:00:52]} Qg4+ {[%emt 0:00:39]} 80. f5 {[%emt 0:00:12]} Qg7+ {[%emt 0:00:43]} 81. Ke6 {[%emt 0:00:43]} Qc3 {[%emt 0:00:44]} 82. f6 {[%emt 0:00:32]} Qxc5 {[%emt 0:01:55]} 83. Rb8+ {[%emt 0:00:25]} Kh7 {[%emt 0:00:04]} 84. f7 {[%emt 0:00:21]} Qe3+ {[%emt 0:00:03]} 85. Kd7 {[%emt 0:00:21]} Qh3+ {[%emt 0:00:05]} 86. Kd8 {[%emt 0:01:01]} Kg7 {[%emt 0:00:19]} 87. Kc7 {[%emt 0:00:12]} Qc3+ {[%emt 0:00:21]} 88. Kd7 {[%emt 0:00:17]} Qh3+ {[%emt 0:00:08]} 89. Kc7 {[%emt 0:00:07]} 1/2-1/2

[Event "Nakhchivan Premium 2021"]
[Site "Nakhchivan"]
[Date "2021.03.30"]
[Round "9.3"]
[White "Aliyev, Aykhan"]
[Black "Baghirov, Orkhan"]
[Result "1-0"]
[ECO "C10"]
[WhiteElo "1683"]
[BlackElo "1473"]
[Annotator "NA RC"]
[PlyCount "133"]
[EventDate "2021.03.14"]
[EventType "tourn"]
[EventCountry "AZE"]
[SourceTitle "playchess.com"]
[Source "ChessBase"]
[SourceQuality "1"]
[TimeControl "5400+30"]

1. e4 {[%emt 0:00:00]} e6 {[%emt 0:00:00]} 2. d4 {[%emt 0:00:00]} d5 {[%emt 0:00:00]} 3. Nd2 {[%emt 0:00:00]} dxe4 {[%emt 0:00:00]} 4. Nxe4 {[%emt 0:00:00]} Nd7 {[%emt 0:00:15]} 5. Nf3 {[%emt 0:00:29]} Ngf6 {[%emt 0:00:30]} 6. Nxf6+ {[%emt 0:00:10]} Nxf6 {[%emt 0:00:02]} 7. Bd3 {[%emt 0:00:13]} Bd6 {[%emt 0:02:25]} 8. Bg5 {[%emt 0:00:16]} Be7 {[%emt 0:01:31]} 9. Qe2 {[%emt 0:03:55]} Nd5 {[%emt 0:02:48]} 10. Bd2 {[%emt 0:04:41]} c6 {[%emt 0:04:26]} 11. a3 {[%emt 0:07:55]} a5 {[%emt 0:05:08]} 12. c4 {[%emt 0:04:56]} Nf6 {[%emt 0:04:02]} 13. O-O {[%emt 0:00:42]} O-O {[%emt 0:03:43]} 14. Rad1 {[%emt 0:01:58]} Qc7 {[%emt 0:01:43]} 15. Ne5 {[%emt 0:05:40]} Nd7 {[%emt 0:05:15]} 16. Nxd7 {[%emt 0:13:29]} Qxd7 {[%emt 0:04:12]} 17. Bf4 {[%emt 0:10:41]} Bd6 {[%emt 0:10:17]} 18. Be5 {[%emt 0:01:11]} Bxe5 {[%emt 0:07:58]} 19. dxe5 {[%emt 0:01:11]} Qe7 {[%emt 0:01:53]} 20. Qc2 {[%emt 0:05:27]} g6 {[%emt 0:05:19]} 21. c5 {[%emt 0:01:26]} f6 {[%emt 0:07:10]} 22. exf6 {[%emt 0:01:36]} Rxf6 {[%emt 0:02:09]} 23. Bc4 {[%emt 0:02:11]} Kg7 {[%emt 0:01:54]} 24. Rd6 {[%emt 0:01:46]} e5 {[%emt 0:03:43]} 25. Qd2 {[%emt 0:03:48]} Bf5 {[%emt 0:03:38]} 26. Rd1 {[%emt 0:04:35]} Rxd6 {[%emt 0:02:49]} 27. cxd6 {[%emt 0:00:30]} Qf6 {[%emt 0:01:30]} 28. d7 {[%emt 0:08:02]} Rd8 {[%emt 0:01:40]} 29. Qxa5 {[%emt 0:01:02]} Qe7 {[%emt 0:01:52]} 30. Qc7 {[%emt 0:01:13]} b5 {[%emt 0:04:17]} 31. Be2 {[%emt 0:00:32]} Rxd7 {[%emt 0:03:12]} 32. Qxc6 {[%emt 0:04:16]} Rxd1+ {[%emt 0:00:36]} 33. Bxd1 {[%emt 0:00:12]} Qd7 {[%emt 0:02:11]} 34. Qxd7+ Bxd7 35. Kf1 {[%emt 0:00:53]} Kf6 {[%emt 0:01:21]} 36. Ke2 {[%emt 0:00:38]} e4 {[%emt 0:01:32]} 37. Ke3 {[%emt 0:00:21]} Ke5 {[%emt 0:00:01]} 38. f3 {[%emt 0:03:07]} exf3 {[%emt 0:01:03]} 39. Bxf3 {[%emt 0:00:12]} g5 {[%emt 0:00:36]} 40. Kd3 {[%emt 0:00:00]} Kd6 {[%emt 0:00:00]} 41. Kd4 {[%emt 0:00:00]} Be8 {[%emt 0:00:00]} 42. Be4 {[%emt 0:00:00]} h6 {[%emt 0:00:00]} 43. b3 {[%emt 0:00:00]} Bd7 {[%emt 0:00:00]} 44. Bc2 {[%emt 0:00:00]} h5 {[%emt 0:00:00]} 45. Bd1 {[%emt 0:04:59]} h4 {[%emt 0:00:00]} 46. h3 {[%emt 0:01:03]} Bc6 {[%emt 0:00:00]} 47. Bf3 {[%emt 0:00:14]} Bd7 {[%emt 0:00:12]} 48. Ke4 {[%emt 0:00:19]} Be6 {[%emt 0:04:02]} 49. a4 {[%emt 0:05:33]} bxa4 {[%emt 0:05:37]} 50. bxa4 {[%emt 0:00:10]} Bd7 {[%emt 0:00:04]} 51. a5 {[%emt 0:00:08]} Bc8 {[%emt 0:00:06]} 52. Kd4 {[%emt 0:01:41]} Ba6 {[%emt 0:00:55]} 53. Be4 {[%emt 0:00:16]} Bc8 {[%emt 0:00:38]} 54. Bd3 {[%emt 0:00:35]} Bb7 {[%emt 0:00:28]} 55. a6 {[%emt 0:00:40]} Bxg2 {[%emt 0:00:42]} 56. Be4 {[%emt 0:00:11]} Bxe4 {[%emt 0:00:34]} 57. Kxe4 {[%emt 0:00:06]} Kc6 {[%emt 0:00:03]} 58. Kf5 {[%emt 0:00:05]} Kb6 {[%emt 0:00:00]} 59. Kxg5 {[%emt 0:00:08]} Kxa6 {[%emt 0:00:11]} 60. Kxh4 {[%emt 0:00:05]} Kb6 {[%emt 0:00:01]} 61. Kg5 {[%emt 0:00:02]} Kc6 {[%emt 0:00:27]} 62. Kf6 {[%emt 0:00:39]} Kd7 {[%emt 0:00:17]} 63. Kf7 {[%emt 0:00:13]} Kd6 {[%emt 0:00:08]} 64. h4 {[%emt 0:00:09]} Ke5 {[%emt 0:00:01]} 65. h5 {[%emt 0:00:09]} Kf5 {[%emt 0:00:04]} 66. h6 {[%emt 0:00:05]} Kg5 {[%emt 0:00:12]} 67. h7 {[%emt 0:00:05]} 1-0

[Event "Nakhchivan Premium 2021"]
[Site "Nakhchivan"]
[Date "2021.03.30"]
[Round "9.4"]
[White "Garayev, Sadig"]
[Black "Ahmadova, Yegana"]
[Result "1-0"]
[ECO "B38"]
[WhiteElo "1781"]
[BlackElo "1421"]
[Annotator "NA RC"]
[PlyCount "97"]
[EventDate "2021.03.14"]
[EventType "tourn"]
[EventCountry "AZE"]
[SourceTitle "playchess.com"]
[Source "ChessBase"]
[SourceQuality "1"]
[TimeControl "5400+30"]

1. e4 {[%emt 0:00:00]} c5 {[%emt 0:00:00]} 2. Nf3 {[%emt 0:00:00]} Nc6 {[%emt 0:00:00]} 3. d4 {[%emt 0:00:09]} cxd4 {[%emt 0:00:00]} 4. Nxd4 {[%emt 0:00:05]} g6 {[%emt 0:00:14]} 5. c4 {[%emt 0:00:16]} Bg7 {[%emt 0:00:04]} 6. Be3 {[%emt 0:00:08]} Nf6 {[%emt 0:00:09]} 7. Nc3 {[%emt 0:00:07]} Nxd4 {[%emt 0:00:06]} 8. Qxd4 {[%emt 0:01:43]} O-O {[%emt 0:00:18]} 9. Qd2 {[%emt 0:13:03]} d6 {[%emt 0:02:30]} 10. f3 {[%emt 0:04:35]} Be6 {[%emt 0:00:43]} 11. Bd3 {[%emt 0:01:10]} Qa5 {[%emt 0:02:22]} 12. Nb5 {[%emt 0:06:41]} Qxd2+ {[%emt 0:00:56]} 13. Kxd2 {[%emt 0:00:11]} a6 {[%emt 0:02:50]} 14. Nd4 {[%emt 0:08:20]} Nd7 {[%emt 0:01:43]} 15. Rac1 {[%emt 0:02:23]} Nc5 {[%emt 0:00:28]} 16. Bb1 {[%emt 0:04:50]} Rfc8 {[%emt 0:00:57]} 17. Nxe6 {[%emt 0:13:44]} Nxe6 {[%emt 0:01:46]} 18. b3 {[%emt 0:01:17]} a5 {[%emt 0:04:17]} 19. Bd3 {[%emt 0:00:53]} Nc5 {[%emt 0:01:13]} 20. Rc2 {[%emt 0:02:27]} Nxd3 {[%emt 0:10:12]} 21. Kxd3 {[%emt 0:00:06]} Rc6 {[%emt 0:07:52]} 22. a3 {[%emt 0:07:13]} Rca6 {[%emt 0:01:22]} 23. Rhc1 {[%emt 0:04:01]} h5 {[%emt 0:05:45]} 24. Bd4 {[%emt 0:01:06]} Bxd4 {[%emt 0:00:59]} 25. Kxd4 {[%emt 0:01:28]} Kg7 {[%emt 0:00:58]} 26. e5 {[%emt 0:05:00]} dxe5+ {[%emt 0:02:32]} 27. Kxe5 {[%emt 0:00:56]} Re6+ {[%emt 0:00:32]} 28. Kd4 {[%emt 0:04:16]} Rd8+ {[%emt 0:00:30]} 29. Kc5 {[%emt 0:03:18]} Re5+ {[%emt 0:24:52]} 30. Kb6 {[%emt 0:00:13]} Re6+ {[%emt 0:08:54]} 31. Kc7 {[%emt 0:09:55]} Red6 {[%emt 0:03:47]} 32. c5 {[%emt 0:00:37]} R8d7+ {[%emt 0:00:14]} 33. Kb8 {[%emt 0:00:40]} Rd8+ {[%emt 0:01:59]} 34. Kc7 {[%emt 0:00:32]} R8d7+ {[%emt 0:00:29]} 35. Kb8 {[%emt 0:00:05]} Rd8+ {[%emt 0:00:08]} 36. Ka7 {[%emt 0:00:29]} Rc6 {[%emt 0:01:20]} 37. b4 {[%emt 0:01:28]} axb4 {[%emt 0:02:53]} 38. axb4 {[%emt 0:00:10]} Rd7 {[%emt 0:05:57]} 39. b5 {[%emt 0:01:32]} b6+ {[%emt 0:00:38]} 40. Ka6 {[%emt 0:00:00]} Rxc5 {[%emt 0:00:00]} 41. Rxc5 {[%emt 0:00:00]} bxc5 {[%emt 0:00:00]} 42. b6 {[%emt 0:00:00]} e5 {[%emt 0:00:00]} 43. b7 {[%emt 0:00:00]} Rxb7 {[%emt 0:00:00]} 44. Kxb7 {[%emt 0:00:00]} f5 {[%emt 0:00:00]} 45. Kc6 {[%emt 0:00:00]} Kf6 {[%emt 0:00:00]} 46. Kd5 {[%emt 0:00:00]} g5 {[%emt 0:00:00]} 47. Rxc5 {[%emt 0:00:00]} e4 {[%emt 0:00:00]} 48. fxe4 {[%emt 0:00:00]} fxe4 {[%emt 0:00:00]} 49. Kxe4 {[%emt 0:00:00]} 1-0

[Event "Nakhchivan Premium 2021"]
[Site "Nakhchivan"]
[Date "2021.03.30"]
[Round "9.5"]
[White "Babayeva, Nasrin"]
[Black "Gasimov, Parviz"]
[Result "1-0"]
[ECO "A22"]
[WhiteElo "1564"]
[BlackElo "2337"]
[Annotator "RC"]
[PlyCount "65"]
[EventDate "2021.03.14"]
[EventType "tourn"]
[EventCountry "AZE"]
[SourceTitle "playchess.com"]
[Source "ChessBase"]
[SourceQuality "1"]
[TimeControl "5400+30"]

1. c4 {[%emt 0:00:00]} e5 {[%emt 0:00:00]} 2. Nc3 {[%emt 0:00:00]} Nf6 {[%emt 0:00:44]} 3. e3 {[%emt 0:00:39]} Bb4 {[%emt 0:06:16]} 4. Nge2 {[%emt 0:04:52]} c6 {[%emt 0:00:06]} 5. a3 {[%emt 0:00:24]} Ba5 {[%emt 0:00:05]} 6. b4 {[%emt 0:00:18]} Bc7 {[%emt 0:00:05]} 7. d4 {[%emt 0:14:52]} Qe7 {[%emt 0:00:03]} 8. d5 {[%emt 0:01:38]} e4 {[%emt 0:01:59]} 9. Nd4 {[%emt 0:04:01]} O-O {[%emt 0:00:12]} 10. Bb2 {[%emt 0:06:19]} Qe5 {[%emt 0:00:25]} 11. Na4 {[%emt 0:10:06]} Qg5 {[%emt 0:10:50]} 12. h4 {[%emt 0:02:13]} Qg6 {[%emt 0:00:43]} 13. h5 {[%emt 0:00:35]} Qg5 {[%emt 0:00:04]} 14. h6 {[%emt 0:02:34]} g6 {[%emt 0:03:30]} 15. d6 {[%emt 0:03:31]} Bd8 {[%emt 0:00:01]} 16. Qc2 {[%emt 0:12:32]} a5 {[%emt 0:00:06]} 17. Rh3 {[%emt 0:00:47]} axb4 {[%emt 0:01:57]} 18. axb4 {[%emt 0:00:17]} Na6 {[%emt 0:00:56]} 19. Rg3 {[%emt 0:01:00]} Ng4 {[%emt 0:00:35]} 20. Qc3 {[%emt 0:03:09]} Nxb4 {[%emt 0:01:28]} 21. Nxc6 {[%emt 0:02:33]} Bf6 {[%emt 0:11:04]} 22. Ne7+ {[%emt 0:00:25]} Kh8 {[%emt 0:00:01]} 23. Qxb4 {[%emt 0:01:05]} Bxb2 {[%emt 0:02:57]} 24. Qxb2+ {[%emt 0:00:04]} f6 {[%emt 0:00:04]} 25. Nb6 {[%emt 0:01:09]} Rxa1+ {[%emt 0:03:13]} 26. Qxa1 {[%emt 0:01:34]} Qc5 {[%emt 0:00:19]} 27. Rxg4 {[%emt 0:03:02]} Qb4+ {[%emt 0:00:14]} 28. Ke2 {[%emt 0:00:34]} Qxb6 {[%emt 0:01:44]} 29. Nd5 {[%emt 0:03:31]} Qxd6 {[%emt 0:04:15]} 30. Nxf6 {[%emt 0:00:19]} Qa6 {[%emt 0:03:24]} 31. Qxa6 {[%emt 0:00:51]} bxa6 {[%emt 0:00:01]} 32. Rxe4 {[%emt 0:00:12]} a5 {[%emt 0:00:35]} 33. Re7 {[%emt 0:00:03]} 1-0

[Event "Nakhchivan Premium 2021"]
[Site "Nakhchivan"]
[Date "2021.03.30"]
[Round "9.6"]
[White "Ismayilov, Arturan"]
[Black "Seyid, Huseyn"]
[Result "1/2-1/2"]
[ECO "B19"]
[WhiteElo "1663"]
[BlackElo "1660"]
[Annotator "NA RC"]
[PlyCount "120"]
[EventDate "2021.03.14"]
[EventType "tourn"]
[EventCountry "AZE"]
[SourceTitle "playchess.com"]
[Source "ChessBase"]
[SourceQuality "1"]
[TimeControl "5400+30"]

1. e4 {[%emt 0:00:00]} c6 {[%emt 0:00:00]} 2. d4 {[%emt 0:00:00]} d5 {[%emt 0:00:00]} 3. Nc3 {[%emt 0:00:02]} dxe4 {[%emt 0:00:00]} 4. Nxe4 {[%emt 0:00:01]} Bf5 {[%emt 0:00:00]} 5. Ng3 {[%emt 0:00:09]} Bg6 {[%emt 0:00:00]} 6. h4 {[%emt 0:00:36]} h6 {[%emt 0:00:00]} 7. Nf3 {[%emt 0:00:11]} Nd7 {[%emt 0:00:07]} 8. h5 {[%emt 0:00:21]} Bh7 {[%emt 0:00:01]} 9. Bd3 {[%emt 0:00:55]} Bxd3 {[%emt 0:00:02]} 10. Qxd3 {[%emt 0:00:02]} Qc7 {[%emt 0:00:16]} 11. Bd2 {[%emt 0:01:16]} e6 {[%emt 0:00:23]} 12. O-O-O {[%emt 0:00:24]} O-O-O {[%emt 0:00:02]} 13. Kb1 {[%emt 0:01:31]} Ngf6 {[%emt 0:00:32]} 14. c4 {[%emt 0:04:19]} Bd6 {[%emt 0:00:39]} 15. Ne4 {[%emt 0:01:31]} Nxe4 {[%emt 0:00:10]} 16. Qxe4 {[%emt 0:00:00]} Nf6 {[%emt 0:00:16]} 17. Qc2 {[%emt 0:01:10]} c5 {[%emt 0:00:57]} 18. Bc3 {[%emt 0:05:33]} cxd4 {[%emt 0:01:58]} 19. Bxd4 {[%emt 0:21:54]} Bc5 {[%emt 0:01:22]} 20. Be5 {[%emt 0:02:42]} Qb6 {[%emt 0:02:33]} 21. Rc1 {[%emt 0:04:03]} Rd7 {[%emt 0:13:33]} 22. a3 {[%emt 0:09:28]} a5 {[%emt 0:07:16]} 23. Qa4 {[%emt 0:05:15]} Rd3 {[%emt 0:12:14]} 24. Bc3 {[%emt 0:03:00]} Ne4 {[%emt 0:10:42]} 25. Bxa5 {[%emt 0:02:54]} Qa6 {[%emt 0:07:09]} 26. Rhd1 {[%emt 0:13:31]} Rd6 {[%emt 0:21:03]} 27. Ne5 {[%emt 0:03:55]} Rf8 {[%emt 0:12:19]} 28. Nd3 {[%emt 0:07:32]} b6 {[%emt 0:03:14]} 29. Nxc5 {[%emt 0:03:10]} Nxc5 {[%emt 0:00:39]} 30. Qb5 {[%emt 0:01:48]} Qxb5 {[%emt 0:04:04]} 31. cxb5 {[%emt 0:00:15]} Rxd1 {[%emt 0:00:23]} 32. Rxd1 {[%emt 0:00:04]} bxa5 {[%emt 0:00:51]} 33. Rc1 {[%emt 0:00:04]} Kb7 {[%emt 0:00:17]} 34. Rxc5 {[%emt 0:00:03]} Kb6 {[%emt 0:00:45]} 35. Rc6+ {[%emt 0:05:23]} Kxb5 {[%emt 0:00:07]} 36. Rc7 {[%emt 0:00:02]} g6 {[%emt 0:00:42]} 37. g4 {[%emt 0:00:26]} gxh5 {[%emt 0:00:16]} 38. gxh5 {[%emt 0:00:04]} Rg8 {[%emt 0:00:33]} 39. Rxf7 {[%emt 0:00:00]} Rg5 {[%emt 0:00:00]} 40. Rf6 {[%emt 0:00:00]} Rxh5 {[%emt 0:00:00]} 41. Rxe6 {[%emt 0:00:00]} Rf5 {[%emt 0:00:00]} 42. Rxh6 {[%emt 0:00:00]} Rxf2 {[%emt 0:00:00]} 43. Rh5+ {[%emt 0:00:00]} Kb6 {[%emt 0:00:00]} 44. Rh3 {[%emt 0:00:00]} Rg2 {[%emt 0:00:00]} 45. Rc3 {[%emt 0:00:00]} Kb5 {[%emt 0:00:00]} 46. b3 {[%emt 0:00:00]} Rh2 {[%emt 0:00:00]} 47. Rc2 {[%emt 0:00:00]} Rh3 {[%emt 0:00:00]} 48. Kb2 {[%emt 0:00:00]} Rg3 {[%emt 0:00:00]} 49. Rd2 {[%emt 0:00:00]} Rg5 {[%emt 0:00:00]} 50. Rd3 {[%emt 0:00:00]} Rh5 {[%emt 0:00:00]} 51. Re3 {[%emt 0:00:00]} Rh6 {[%emt 0:00:00]} 52. Re5+ {[%emt 0:00:00]} Kb6 {[%emt 0:00:00]} 53. Kc3 {[%emt 0:00:00]} Rh3+ {[%emt 0:00:00]} 54. Kc4 {[%emt 0:00:00]} Rh4+ {[%emt 0:00:00]} 55. Kd5 {[%emt 0:00:00]} a4 {[%emt 0:00:00]} 56. Re6+ {[%emt 0:00:00]} Kb7 {[%emt 0:00:00]} 57. Re7+ {[%emt 0:00:00]} Kb6 {[%emt 0:00:00]} 58. Re6+ {[%emt 0:00:00]} Kb7 {[%emt 0:00:00]} 59. bxa4 {[%emt 0:00:00]} Rxa4 {[%emt 0:00:00]} 60. Re4 {[%emt 0:00:00]} Rxa3 {[%emt 0:00:00]} 1/2-1/2